bitfinex/quotes_BTCUSD_20250226
["timestamp","ask_amount","ask_price","bid_price","bid_amount"]
[1740591539759,0.173062,86674.0,86673.0,1.5877]
[1740591539966,0.176062,86674.0,86673.0,1.5877]
[1740591540162,0.176062,86674.0,86673.0,0.005]
[1740591540372,0.173062,86674.0,86673.0,0.005]
[1740591540570,0.230742,86677.0,86673.0,0.005]
[1740591540926,0.11516676,86674.0,86673.0,0.005]
[1740591541194,0.11516676,86674.0,86661.0,0.005]
[1740591541195,0.3,86672.0,86661.0,0.005]
[1740591541388,0.230765,86668.0,86661.0,0.005]
[1740591541592,0.978584,86667.0,86661.0,0.005]
[1740591541820,0.230765,86668.0,86661.0,0.005]
[1740591542018,0.02177399,86677.0,86661.0,0.005]
[1740591542367,0.230625,86676.0,86661.0,0.005]
[1740591542603,0.02788262,86689.0,86661.0,0.005]
[1740591542604,0.01132,86691.0,86661.0,0.005]
[1740591542857,0.01994,86689.0,86661.0,0.02536376]
[1740591542995,0.004,86674.0,86664.0,0.01993916]
[1740591543200,0.230755,86672.0,86661.0,0.0054246]
[1740591543529,0.17964,86671.0,86661.0,0.0054246]
[1740591543753,0.230755,86672.0,86661.0,0.0054246]
[1740591543974,0.19626299,86671.0,86661.0,0.0054246]
[1740591544149,0.230765,86668.0,86661.0,0.0054246]
[1740591544376,0.173086,86662.0,86661.0,0.0054246]
[1740591547324,0.0001234,86688.0,86661.0,0.02536376]
[1740591547526,0.230715,86687.0,86661.0,0.02536376]
[1740591547730,0.176086,86662.0,86661.0,0.0054246]
[1740591549061,0.003,86662.0,86661.0,0.0054246]
[1740591549272,0.003,86662.0,86661.0,0.02536376]
[1740591549469,0.1222,86710.0,86661.0,0.02536376]
[1740591549470,0.01136,86703.0,86669.0,0.01993916]
[1740591549677,0.173061,86675.0,86670.0,0.03573145]
[1740591549883,0.173053,86679.0,86671.0,0.03573145]
[1740591550104,0.019939,86700.0,86661.0,0.0841246]
[1740591550314,0.01454085,86699.0,86662.0,0.03573429]
[1740591550520,0.019939,86700.0,86677.0,0.01993916]
[1740591550726,0.0041234,86688.0,86681.0,0.01993916]
[1740591551137,0.0041234,86688.0,86677.0,0.047]
[1740591551138,0.0001234,86688.0,86683.0,0.01993916]
[1740591551294,0.0051234,86688.0,86683.0,0.01993916]
[1740591551494,0.0051234,86688.0,86684.0,0.03573429]
[1740591551868,0.0051234,86688.0,86685.0,0.03573429]
[1740591552097,0.0051234,86688.0,86686.0,0.03573429]
[1740591552390,0.0051234,86688.0,86687.0,0.13237345]
[1740591552610,0.0051234,86688.0,86687.0,0.22468665]
[1740591552790,0.0001234,86688.0,86687.0,0.22468665]
[1740591552991,0.0041234,86688.0,86687.0,0.20474749]
[1740591553251,0.0041234,86688.0,86687.0,0.22468665]
[1740591553454,0.0001234,86688.0,86687.0,0.22468665]
[1740591553881,0.0001234,86688.0,86687.0,0.22868665]
[1740591554054,0.0001234,86688.0,86687.0,0.13637345]
[1740591554428,0.1731574,86688.0,86687.0,0.03573429]
[1740591554811,0.0001234,86688.0,86687.0,0.03573429]
[1740591555008,0.0001234,86688.0,86687.0,0.05567345]
[1740591555221,0.0009732,86688.0,86687.0,0.05567345]
[1740591555459,0.1740072,86688.0,86687.0,0.03573429]
[1740591555615,0.1740072,86688.0,86687.0,0.03673429]
[1740591555616,0.1750072,86688.0,86687.0,0.03673429]
[1740591556290,0.1740072,86688.0,86687.0,0.03573429]
[1740591556429,0.1740072,86688.0,86687.0,0.03673429]
[1740591556878,0.0009732,86688.0,86687.0,0.03573429]
[1740591557320,0.0049732,86688.0,86687.0,0.05567345]
[1740591557441,0.0049732,86688.0,86687.0,0.17827345]
[1740591558561,0.0009732,86688.0,86687.0,0.17827345]
[1740591558918,0.0009732,86688.0,86687.0,0.17927345]
[1740591559477,0.0009732,86688.0,86687.0,0.17827345]
[1740591559678,0.230627,86720.0,86687.0,0.17827345]
[1740591559874,0.001,86688.0,86687.0,0.14353916]
[1740591560082,0.174034,86688.0,86687.0,0.17943171]
[1740591560276,0.230658,86709.0,86687.0,0.17443171]
[1740591560484,0.230658,86709.0,86695.0,0.01593916]
[1740591560694,0.173018,86696.0,86695.0,0.01493916]
[1740591560882,0.173018,86696.0,86695.0,0.05083595]
[1740591561082,0.173018,86696.0,86695.0,0.05124686]
[1740591561284,0.230658,86709.0,86695.0,0.05124686]
[1740591561515,0.173018,86696.0,86695.0,0.01535007]
[1740591561717,0.46143592,86730.0,86695.0,0.05125511]
[1740591561915,0.173017,86697.0,86696.0,0.03590504]
[1740591563297,0.230685,86699.0,86695.0,0.00041091]
[1740591563544,0.173018,86696.0,86695.0,9.1e-07]
[1740591565108,0.184338,86696.0,86695.0,9.1e-07]
[1740591565465,0.173018,86696.0,86695.0,9.1e-07]
[1740591565865,0.176018,86696.0,86695.0,9.1e-07]
[1740591566453,0.173018,86696.0,86695.0,9.1e-07]
[1740591566939,0.5895924,86696.0,86695.0,9.1e-07]
[1740591567114,0.6009124,86696.0,86695.0,9.1e-07]
[1740591567324,0.63039325,86696.0,86695.0,9.1e-07]
[1740591567522,0.63124085,86696.0,86695.0,9.1e-07]
[1740591568233,0.51466645,86696.0,86695.0,9.1e-07]
[1740591568724,0.52672729,86696.0,86695.0,9.1e-07]
[1740591568929,0.52668729,86696.0,86695.0,9.1e-07]
[1740591569137,0.51968729,86696.0,86695.0,9.1e-07]
[1740591569340,0.52668729,86696.0,86695.0,9.1e-07]
[1740591569586,0.52162645,86696.0,86695.0,9.1e-07]
[1740591569783,0.4958056,86696.0,86695.0,9.1e-07]
[1740591570094,0.5000856,86696.0,86695.0,9.1e-07]
[1740591570302,0.5070856,86696.0,86695.0,9.1e-07]
[1740591570701,0.4958056,86696.0,86695.0,9.1e-07]
[1740591571243,0.5070856,86696.0,86695.0,9.1e-07]
[1740591571471,0.00506084,86691.0,86675.0,7.1e-07]
[1740591571696,0.173058,86676.0,86675.0,7.1e-07]
[1740591572927,0.473058,86676.0,86675.0,7.1e-07]
[1740591573388,0.476058,86676.0,86675.0,7.1e-07]
[1740591573782,0.487338,86676.0,86675.0,7.1e-07]
[1740591574095,0.487338,86676.0,86650.0,0.0004241]
[1740591574096,0.02,86663.0,86650.0,1e-08]
[1740591574265,0.473112,86649.0,86648.0,1e-08]
[1740591574483,0.49893285,86649.0,86648.0,1e-08]
[1740591574693,0.50356285,86649.0,86648.0,1e-08]
[1740591574897,0.60058732,86649.0,86648.0,1e-08]
[1740591575326,0.60099983,86649.0,86648.0,1e-08]
[1740591575893,0.61224068,86649.0,86648.0,1e-08]
[1740591576273,0.60099983,86649.0,86648.0,1e-08]
[1740591576476,0.60799983,86649.0,86648.0,1e-08]
[1740591576970,0.49643451,86649.0,86648.0,1e-08]
[1740591577285,0.51097536,86649.0,86648.0,1e-08]
[1740591577573,0.49643451,86649.0,86648.0,1e-08]
[1740591577777,0.48943451,86649.0,86648.0,1e-08]
[1740591578094,0.49643451,86649.0,86648.0,1e-08]
[1740591578299,0.48515451,86649.0,86648.0,1e-08]
[1740591578501,0.17352451,86649.0,86648.0,1e-08]
[1740591578703,0.17352451,86649.0,86648.0,0.00042371]
[1740591578907,0.18052451,86649.0,86648.0,0.00042371]
[1740591579320,0.17352451,86649.0,86648.0,0.00042371]
[1740591579755,0.18052451,86649.0,86648.0,0.00042371]
[1740591580595,0.25977991,86649.0,86648.0,7.1e-07]
[1740591580796,2.00039437,86649.0,86648.0,7.1e-07]
[1740591581021,0.26413337,86649.0,86648.0,7.1e-07]
[1740591581195,0.27113337,86649.0,86648.0,7.1e-07]
[1740591581400,0.19187797,86649.0,86648.0,7.1e-07]
[1740591581742,0.01284766,86649.0,86648.0,7.1e-07]
[1740591581943,0.01984766,86649.0,86648.0,7.1e-07]
[1740591582148,0.21295966,86649.0,86648.0,7.1e-07]
[1740591582476,0.20595966,86649.0,86648.0,7.1e-07]
[1740591582678,0.3,86638.0,86635.0,8.1e-07]
[1740591582895,0.3,86636.0,86622.0,0.005]
[1740591583097,3.917132,86635.0,86622.0,0.005]
[1740591583228,2.82158032,86634.0,86622.0,0.005]
[1740591583455,0.35132584,86639.0,86622.0,0.005]
[1740591583456,0.230869,86629.0,86622.0,0.005]
[1740591583685,0.173164,86623.0,86622.0,0.005]
[1740591584016,0.00506084,86616.0,86596.0,0.00617466]
[1740591584181,0.230912,86613.0,86596.0,0.00617466]
[1740591584388,0.508414,86612.0,86596.0,0.00617466]
[1740591584592,0.23092,86610.0,86596.0,0.00617466]
[1740591584795,0.230928,86607.0,86596.0,0.00617466]
[1740591584968,0.452965,86606.0,86600.0,0.00090661]
[1740591585156,0.08292983,86601.0,86600.0,0.00090661]
[1740591585358,0.173208,86601.0,86600.0,0.00090661]
[1740591585761,0.62044,86601.0,86600.0,0.00090661]
[1740591585968,0.173208,86601.0,86600.0,0.00090661]
[1740591586866,0.17351455,86601.0,86600.0,0.00097661]
[1740591587275,0.00030655,86601.0,86600.0,0.00097661]
[1740591587482,0.18051455,86601.0,86600.0,0.00097661]
[1740591587835,0.00030655,86601.0,86600.0,0.00097661]
[1740591588039,0.007,86601.0,86600.0,0.00097661]
[1740591588440,0.00711742,86601.0,86600.0,0.00097661]
[1740591588637,0.01132,86609.0,86600.0,0.00097661]
[1740591588839,0.007,86601.0,86600.0,0.00097661]
[1740591589195,0.007,86601.0,86600.0,0.09341577]
[1740591589388,0.007,86601.0,86600.0,0.16281577]
[1740591589627,0.007,86601.0,86600.0,0.46281577]
[1740591590040,0.01132,86625.0,86600.0,0.46281577]
[1740591590250,0.173141,86635.0,86614.0,0.02]
[1740591590470,0.173141,86635.0,86614.0,0.014]
[1740591590945,0.17316,86625.0,86616.0,0.01493916]
[1740591591147,0.003,86625.0,86616.0,0.01493916]
[1740591591484,0.173162,86625.0,86616.0,0.01493916]
[1740591591697,0.230853,86635.0,86614.0,0.01493916]
[1740591591894,0.007,86635.0,86614.0,0.02893916]
[1740591592159,0.007,86635.0,86620.0,0.01493916]
[1740591592344,0.007,86635.0,86623.0,0.01493916]
[1740591592925,0.007,86635.0,86617.0,0.10731738]
[1740591593122,0.265575,86638.0,86617.0,0.10731738]
[1740591593123,0.03473,86638.0,86623.0,0.01493916]
[1740591593502,0.003,86625.0,86624.0,0.01493916]
[1740591593710,0.003,86625.0,86624.0,0.09523916]
[1740591593913,0.03473,86638.0,86624.0,0.09523916]
[1740591594320,0.007,86635.0,86631.0,0.01493916]
[1740591594531,0.007,86635.0,86634.0,0.01493916]
[1740591594745,0.034724,86648.0,86629.0,0.0463]
[1740591594953,2.084996,86647.0,86624.0,0.0803]
[1740591595160,0.41816496,86646.0,86624.0,0.0803]
[1740591595361,0.173173,86619.0,86615.0,0.0485]
[1740591595570,0.173169,86621.0,86615.0,0.04891251]
[1740591595772,0.17317,86620.0,86615.0,0.04891251]
[1740591596124,0.173163,86624.0,86615.0,0.04891251]
[1740591596326,0.034734,86620.0,86615.0,0.04891251]
[1740591596754,0.173178,86616.0,86615.0,0.00041251]
[1740591598018,0.01156,86616.0,86615.0,0.00041251]
[1740591598226,0.190738,86616.0,86615.0,0.00141251]
[1740591599273,0.487384,86616.0,86615.0,0.00141251]
[1740591599489,0.487384,86616.0,86615.0,0.00041251]
[1740591599490,1.39725385,86616.0,86615.0,0.00041251]
[1740591599689,1.58999139,86616.0,86615.0,0.00041251]
[1740591599891,0.53863285,86616.0,86615.0,0.00041251]
[1740591600245,0.01156,86616.0,86615.0,0.00041251]
[1740591601051,0.01856,86616.0,86615.0,0.00041251]
[1740591601270,0.191738,86616.0,86600.0,0.0005641]
[1740591601624,0.173208,86601.0,86600.0,0.0005641]
[1740591601989,0.173189,86611.0,86600.0,0.0005641]
[1740591602190,0.01936832,86615.0,86600.0,0.0005641]
[1740591602391,0.140349,86614.0,86600.0,0.0005641]
[1740591602572,0.173208,86601.0,86600.0,0.0005641]
[1740591603133,0.03085627,86614.0,86600.0,0.0005641]
[1740591603346,0.230914,86612.0,86600.0,0.0005641]
[1740591603513,0.173208,86601.0,86600.0,0.0005641]
[1740591603869,0.184768,86601.0,86600.0,0.0005641]
[1740591604070,0.00044849,86601.0,86600.0,0.0005641]
[1740591604512,0.01156,86603.0,86600.0,0.0005641]
[1740591604881,0.173208,86601.0,86600.0,0.0005641]
[1740591605086,0.2425,86603.0,86600.0,0.0005641]
[1740591605087,0.01156,86603.0,86600.0,0.0005641]
[1740591606111,0.242501,86603.0,86600.0,0.0005641]
[1740591606407,0.173208,86601.0,86600.0,0.0005641]
[1740591606768,0.248501,86603.0,86600.0,0.0005641]
[1740591606769,0.01756,86603.0,86600.0,0.0005641]
[1740591606972,0.01156,86613.0,86606.0,0.01493916]
[1740591607175,0.01156,86613.0,86606.0,0.00793916]
[1740591607373,0.1732,86605.0,86604.0,0.0821]
[1740591607573,0.230917,86611.0,86600.0,0.0005641]
[1740591607755,0.173204,86603.0,86600.0,0.0005641]
[1740591607959,0.006,86603.0,86600.0,0.0005641]
[1740591608657,0.173207,86602.0,86600.0,0.0005641]
[1740591608907,0.006,86603.0,86600.0,0.0005641]
[1740591608908,0.187143,86603.0,86600.0,0.0005641]
[1740591609084,0.173208,86601.0,86600.0,0.0005641]
[1740591609315,0.007939,86603.0,86600.0,0.0005641]
[1740591609477,0.007939,86603.0,86600.0,0.0015641]
[1740591609692,0.007939,86603.0,86602.0,0.00793916]
[1740591609890,0.007,86611.0,86610.0,0.00793916]
[1740591610092,0.173148,86631.0,86615.0,0.09033916]
[1740591610318,0.10199849,86637.0,86626.0,0.00793916]
[1740591610597,0.00794,86629.0,86628.0,0.00393916]
[1740591610954,0.10199849,86637.0,86628.0,0.00393916]
[1740591611157,0.10199849,86637.0,86620.0,0.01206256]
[1740591611355,0.0152252,86637.0,86629.0,0.03600268]
[1740591611642,0.0001442,86653.0,86630.0,0.03600268]
[1740591611819,0.01152,86658.0,86631.0,0.03600268]
[1740591612153,0.230818,86648.0,86632.0,0.03600268]
[1740591612382,0.034726,86649.0,86633.0,0.03600268]
[1740591612586,0.01152,86678.0,86639.0,0.01206256]
[1740591612789,0.25988,86670.0,86640.0,0.03600268]
[1740591612992,0.034721,86664.0,86641.0,0.03200268]
[1740591613195,0.173112,86649.0,86642.0,0.03200268]
[1740591613403,0.173115,86648.0,86643.0,0.03200268]
[1740591613630,0.173115,86648.0,86637.0,0.0787]
[1740591613631,0.230794,86658.0,86637.0,0.0787]
[1740591613824,0.007,86649.0,86640.0,0.01206256]
[1740591614031,0.007,86649.0,86644.0,0.01206256]
[1740591614233,0.034721,86665.0,86641.0,0.03598986]
[1740591614402,0.005,86649.0,86642.0,0.03598986]
[1740591614607,0.005,86649.0,86643.0,0.03598986]
[1740591614809,0.17312,86645.0,86644.0,0.03598986]
[1740591615018,0.17364918,86645.0,86644.0,0.03598986]
[1740591615379,0.17314,86635.0,86634.0,0.0453]
[1740591615578,0.173138,86637.0,86634.0,0.08129025]
[1740591615957,0.173138,86637.0,86610.0,0.00117466]
[1740591615958,0.173166,86622.0,86621.0,0.0457]
[1740591616144,0.01454085,86647.0,86610.0,0.00117466]
[1740591616145,0.173188,86611.0,86610.0,0.00117466]
[1740591616356,0.173188,86611.0,86610.0,0.03717771]
[1740591616498,0.173196,86607.0,86606.0,0.0457]
[1740591616700,0.01454085,86627.0,86606.0,0.0457]
[1740591616901,0.230937,86604.0,86600.0,0.0005641]
[1740591617100,0.034739,86620.0,86600.0,0.0005641]
[1740591617101,0.173204,86603.0,86600.0,0.0005641]
[1740591617301,0.034739,86620.0,86600.0,0.00097636]
[1740591617302,0.173208,86601.0,86600.0,0.00097636]
[1740591618113,0.420062,86601.0,86600.0,0.00097636]
[1740591618540,0.43460285,86601.0,86600.0,0.00097636]
[1740591618752,0.374476,86601.0,86600.0,0.00097636]
[1740591619083,0.39576737,86601.0,86600.0,0.00097636]
[1740591619273,0.37480937,86601.0,86600.0,0.00297636]
[1740591619484,0.19449937,86601.0,86600.0,0.00297636]
[1740591619693,0.23094,86603.0,86600.0,0.00297636]
[1740591619977,0.173208,86601.0,86600.0,0.00097636]
[1740591620204,0.323154,86601.0,86600.0,0.00197636]
[1740591620397,0.173216,86597.0,86596.0,3.6e-07]
[1740591621006,0.48775685,86597.0,86596.0,3.6e-07]
[1740591621233,0.173216,86597.0,86596.0,3.6e-07]
[1740591621976,0.00041251,86601.0,86596.0,3.6e-07]
[1740591622201,0.461892,86600.0,86596.0,3.6e-07]
[1740591622400,0.178216,86597.0,86596.0,3.6e-07]
[1740591622783,0.173216,86597.0,86596.0,3.6e-07]
[1740591623771,0.23676835,86597.0,86596.0,3.6e-07]
[1740591623972,0.21100399,86597.0,86596.0,3.6e-07]
[1740591624223,0.14173307,86597.0,86596.0,3.6e-07]
[1740591625202,0.14173307,86597.0,86596.0,0.00042456]
[1740591625524,0.14673307,86597.0,86596.0,0.00042456]
[1740591626130,0.42953907,86597.0,86596.0,0.00042456]
[1740591626325,0.58023207,86597.0,86596.0,0.00042456]
[1740591626525,0.15825307,86597.0,86596.0,0.00042456]
[1740591626723,0.30970607,86597.0,86596.0,0.00042456]
[1740591626885,0.34075362,86597.0,86596.0,0.00042456]
[1740591627084,0.33575362,86597.0,86596.0,0.00042456]
[1740591627512,0.31981261,86597.0,86596.0,0.00042456]
[1740591627713,0.55097,86591.0,86588.0,0.000425]
[1740591627921,0.3,86589.0,86588.0,0.000425]
[1740591628133,1.453935,86589.0,86571.0,0.005]
[1740591628402,0.173266,86572.0,86571.0,0.005]
[1740591628559,1.453969,86572.0,86571.0,0.005]
[1740591628772,1.47048694,86572.0,86571.0,0.005]
[1740591628973,1.5843439,86572.0,86571.0,0.005]
[1740591629176,1.5973809,86572.0,86571.0,0.005]
[1740591629704,1.60975341,86572.0,86571.0,0.005]
[1740591629926,1.47937851,86572.0,86571.0,0.005]
[1740591630523,1.48637851,86572.0,86571.0,0.006]
[1740591631070,1.00327951,86572.0,86571.0,0.006]
[1740591631318,0.83001351,86572.0,86571.0,0.006]
[1740591631515,1.0038452,86572.0,86571.0,0.006]
[1740591631841,1.13939343,86572.0,86571.0,0.006]
[1740591631992,1.15135343,86572.0,86571.0,0.006]
[1740591632391,0.71595562,86572.0,86571.0,0.005]
[1740591632589,0.66546462,86572.0,86571.0,0.005]
[1740591632789,0.66546462,86572.0,86571.0,0.025]
[1740591632790,0.02116562,86572.0,86571.0,0.025]
[1740591633093,0.01289116,86572.0,86571.0,0.025]
[1740591633296,0.00589116,86572.0,86571.0,0.025]
[1740591633671,0.00589116,86572.0,86571.0,0.045]
[1740591633672,0.00641251,86572.0,86571.0,0.045]
[1740591634082,0.230938,86604.0,86572.0,0.0789]
[1740591634322,0.230946,86600.0,86599.0,0.02]
[1740591634535,0.17321,86600.0,86599.0,0.0155]
[1740591635551,0.17321,86600.0,86599.0,0.01562367]
[1740591635756,0.636968,86600.0,86599.0,0.00012367]
[1740591635962,0.61077743,86600.0,86599.0,0.00012367]
[1740591636163,0.72114707,86600.0,86599.0,6.7e-07]
[1740591636404,0.28415007,86600.0,86599.0,6.7e-07]
[1740591636790,0.92699092,86600.0,86599.0,6.7e-07]
[1740591636993,0.92999092,86600.0,86599.0,6.7e-07]
[1740591637169,0.173266,86572.0,86571.0,0.0205]
[1740591637362,0.173266,86572.0,86571.0,0.005]
[1740591637629,0.16927822,86572.0,86571.0,0.005]
[1740591637982,0.99067522,86572.0,86571.0,0.005]
[1740591638182,1.14998122,86572.0,86571.0,0.005]
[1740591638381,0.85294187,86572.0,86571.0,0.005]
[1740591638599,0.85294187,86572.0,86571.0,0.0054243]
[1740591638973,0.86494187,86572.0,86571.0,0.0054243]
[1740591639597,0.86894187,86572.0,86571.0,0.0054243]
[1740591639802,0.85694187,86572.0,86571.0,0.0054243]
[1740591640008,0.76060387,86572.0,86571.0,0.0054243]
[1740591640211,0.32275687,86572.0,86571.0,0.0055043]
[1740591640406,0.29699487,86572.0,86571.0,0.0055043]
[1740591640572,0.28503487,86572.0,86571.0,0.0055043]
[1740591641577,0.28493487,86572.0,86571.0,0.0055043]
[1740591641780,0.00712365,86572.0,86571.0,0.0410043]
[1740591642206,0.17338965,86572.0,86571.0,0.09115839]
[1740591642410,0.17338965,86572.0,86571.0,0.0055043]
[1740591642411,0.8366905,86572.0,86571.0,0.0055043]
[1740591642669,1.49295494,86572.0,86571.0,0.0055043]
[1740591642878,1.44929694,86572.0,86571.0,0.0055043]
[1740591643094,1.44935476,86572.0,86571.0,0.0055043]
[1740591643299,1.44935476,86572.0,86567.0,0.0130366]
[1740591643300,0.646544,86569.0,86545.0,0.005]
[1740591643522,1.33483628,86568.0,86545.0,0.005]
[1740591643749,0.980703,86567.0,86545.0,0.005]
[1740591643947,0.01454085,86563.0,86545.0,0.005]
[1740591644148,0.231058,86558.0,86545.0,0.005]
[1740591644349,1.0052885,86557.0,86545.0,0.005]
[1740591644706,0.173308,86551.0,86545.0,0.005]
[1740591644920,1.794311,86551.0,86550.0,1e-06]
[1740591645124,1.79488646,86551.0,86550.0,1e-06]
[1740591645339,1.782311,86551.0,86550.0,1e-06]
[1740591645471,1.274639,86551.0,86550.0,1e-06]
[1740591645670,1.025308,86551.0,86550.0,1e-06]
[1740591645879,1.020268,86551.0,86550.0,1e-06]
[1740591646078,0.426733,86551.0,86550.0,1e-06]
[1740591646281,0.00012365,86572.0,86552.0,0.02]
[1740591646535,0.00012365,86572.0,86568.0,0.0971]
[1740591646536,0.1017066,86569.0,86568.0,0.0971]
[1740591646741,0.1017066,86569.0,86568.0,0.1101]
[1740591648539,0.1017066,86569.0,86568.0,0.20251237]
[1740591649167,0.1027066,86569.0,86568.0,0.20451237]
[1740591649552,0.001,86569.0,86568.0,0.20451237]
[1740591649768,0.00012365,86572.0,86568.0,0.20251237]
[1740591649956,0.00012365,86572.0,86571.0,0.032]
[1740591651440,0.17338965,86572.0,86571.0,0.013]
[1740591651651,0.173272,86569.0,86568.0,0.1115243]
[1740591651849,0.173272,86569.0,86568.0,0.0925243]
[1740591652052,0.327054,86569.0,86568.0,0.0775243]
[1740591652257,0.328054,86569.0,86568.0,0.0805243]
[1740591652610,0.327054,86569.0,86568.0,0.0775243]
[1740591652809,0.327054,86569.0,86568.0,0.0004243]
[1740591653018,0.328054,86569.0,86568.0,0.0004243]
[1740591653475,0.327054,86569.0,86568.0,0.0004243]
[1740591653923,0.33252335,86569.0,86568.0,0.0004243]
[1740591654130,0.34456335,86569.0,86568.0,0.0004243]
[1740591654339,0.332054,86569.0,86568.0,0.0004243]
[1740591654753,0.344094,86569.0,86568.0,0.0004243]
[1740591654959,0.339094,86569.0,86568.0,0.0004243]
[1740591655388,0.34256335,86569.0,86568.0,3e-07]
[1740591655586,0.52459517,86569.0,86568.0,3e-07]
[1740591655790,0.52159517,86569.0,86568.0,3e-07]
[1740591656145,0.52859517,86569.0,86568.0,3e-07]
[1740591656677,0.173308,86551.0,86550.0,1e-06]
[1740591656813,1.154011,86551.0,86550.0,1e-06]
[1740591657012,0.173318,86546.0,86545.0,0.005]
[1740591657346,0.01204,86551.0,86548.0,0.013]
[1740591657507,0.173295,86558.0,86553.0,0.013]
[1740591657706,0.17329,86560.0,86559.0,0.013]
[1740591657915,0.173316,86547.0,86546.0,0.019]
[1740591658227,0.173312,86549.0,86548.0,0.019]
[1740591658436,0.173312,86549.0,86548.0,0.032]
[1740591658615,0.18181833,86550.0,86549.0,0.032]
[1740591658829,0.0001236,86560.0,86549.0,0.032]
[1740591658830,0.231056,86559.0,86550.0,0.019]
[1740591659040,0.0001236,86560.0,86550.0,0.019]
[1740591659041,0.034763,86553.0,86552.0,0.013]
[1740591659239,0.173304,86553.0,86552.0,0.011]
[1740591659449,0.22861396,86553.0,86552.0,0.011]
[1740591660266,0.231078,86551.0,86550.0,0.011]
[1740591660468,0.510862,86551.0,86550.0,0.03]
[1740591660683,0.404386,86551.0,86550.0,0.03]
[1740591661023,0.05530996,86553.0,86552.0,0.011]
[1740591661398,0.05530996,86553.0,86552.0,0.03]
[1740591661599,0.05530996,86553.0,86552.0,0.031]
[1740591661985,0.02127306,86553.0,86552.0,0.031]
[1740591662166,0.19457706,86553.0,86552.0,0.011]
[1740591662381,0.19457706,86553.0,86552.0,0.03]
[1740591663000,0.19457706,86553.0,86545.0,0.005]
[1740591663001,0.231075,86552.0,86545.0,0.005]
[1740591663191,0.173318,86546.0,86545.0,0.005]
[1740591663619,0.173318,86546.0,86545.0,0.016]
[1740591664030,0.173313,86549.0,86548.0,0.011]
[1740591664659,0.231067,86555.0,86554.0,0.011]
[1740591664867,0.1017066,86567.0,86559.0,0.011]
[1740591665063,0.1017066,86567.0,86559.0,0.03]
[1740591665268,0.02142117,86560.0,86559.0,0.1601]
[1740591666080,0.1017066,86567.0,86566.0,0.4083]
[1740591666289,0.034751,86585.0,86584.0,0.503242]
[1740591666488,0.00485,86628.0,86599.0,0.03]
[1740591666663,0.034736,86623.0,86599.0,0.1595]
[1740591666867,0.00485,86628.0,86599.0,0.1595]
[1740591667081,0.00485,86628.0,86599.0,0.632712]
[1740591667251,0.00485,86628.0,86627.0,0.03]
[1740591667678,0.17812793,86628.0,86627.0,0.011]
[1740591667883,0.17812793,86628.0,86627.0,0.03]
[1740591668300,0.17812793,86628.0,86627.0,0.011]
[1740591668480,0.17812793,86628.0,86627.0,0.03]
[1740591668859,0.17812793,86628.0,86627.0,0.011]
[1740591669059,0.17812793,86628.0,86613.0,0.019]
[1740591669060,0.28580193,86628.0,86613.0,0.019]
[1740591669262,0.577619,86627.0,86607.0,0.011]
[1740591669463,0.173196,86607.0,86606.0,0.03]
[1740591669720,0.173196,86607.0,86606.0,0.011]
[1740591669914,0.23088,86625.0,86599.0,0.1295]
[1740591669915,0.00032528,86637.0,86605.0,0.011]
[1740591670251,0.173194,86608.0,86607.0,0.011]
[1740591670449,0.230917,86611.0,86602.0,0.011]
[1740591670588,0.173204,86603.0,86602.0,0.011]
[1740591670789,0.173204,86603.0,86602.0,0.03]
[1740591670993,0.283108,86603.0,86602.0,0.03]
[1740591671368,0.283108,86603.0,86588.0,0.01217466]
[1740591671369,0.1216023,86603.0,86588.0,0.01217466]
[1740591671545,0.173248,86581.0,86580.0,0.011]
[1740591671755,0.415473,86581.0,86580.0,0.011]
[1740591671891,0.00032528,86589.0,86582.0,0.011]
[1740591672091,0.012,86611.0,86594.0,0.03]
[1740591672291,0.173202,86604.0,86603.0,0.011]
[1740591672509,0.173222,86594.0,86593.0,0.011]
[1740591672923,0.034746,86604.0,86602.0,0.011]
[1740591673221,0.00012386,86604.0,86603.0,0.023]
[1740591673433,0.00012386,86604.0,86603.0,0.03006]
[1740591673638,0.00012386,86604.0,86603.0,0.10946]
[1740591673842,0.00012386,86604.0,86603.0,0.10446]
[1740591674285,0.00012386,86604.0,86603.0,0.0974]
[1740591675479,0.00485,86628.0,86627.0,0.018]
[1740591675674,0.00485,86628.0,86627.0,0.017]
[1740591675879,0.00485,86628.0,86627.0,0.0982]
[1740591676299,0.00485,86628.0,86627.0,0.1456]
[1740591676512,0.00485,86628.0,86627.0,0.16016]
[1740591677091,0.00485,86628.0,86627.0,0.16516]
[1740591677233,0.00485,86628.0,86627.0,1.66516]
[1740591677437,0.00485,86628.0,86627.0,1.66524]
[1740591678430,0.00485,86654.0,86640.0,0.017]
[1740591678756,0.00497383,86641.0,86640.0,0.017]
[1740591678972,0.17810183,86641.0,86640.0,0.017]
[1740591679920,0.00497383,86641.0,86640.0,0.017]
[1740591680090,0.10191754,86685.0,86628.0,0.09241237]
[1740591680091,0.012,86694.0,86660.0,0.02]
[1740591680323,0.980703,86693.0,86672.0,0.02]
[1740591680546,0.173048,86681.0,86680.0,0.02]
[1740591680949,0.034712,86692.0,86683.0,0.02]
[1740591681156,0.03367278,86692.0,86684.0,0.02]
[1740591681360,0.03367278,86692.0,86661.0,0.21961237]
[1740591681361,0.173036,86687.0,86685.0,0.02]
[1740591681593,0.230707,86690.0,86685.0,0.02]
[1740591681765,0.03367278,86692.0,86683.0,0.02]
[1740591681965,0.230707,86690.0,86681.0,0.02]
[1740591682164,0.516199,86689.0,86672.0,8e-05]
[1740591682398,0.173064,86673.0,86672.0,0.02008]
[1740591682807,0.173058,86676.0,86675.0,0.02]
[1740591683000,0.033673,86696.0,86682.0,0.02]
[1740591683369,0.033673,86696.0,86672.0,8e-05]
[1740591683370,0.00041287,86697.0,86695.0,0.02]
[1740591683569,0.00041287,86697.0,86694.0,0.0758]
[1740591683570,0.00041287,86697.0,86696.0,0.02958]
[1740591683770,0.00041287,86697.0,86696.0,0.62094003]
[1740591683973,0.00041287,86697.0,86696.0,0.44792203]
[1740591685553,0.0008488,86715.0,86700.0,0.49301]